{"text_format":"1","workbook":"xlsx","n_sheets":11,"sheets":["参加申込みについて","参加申込書","封筒宛先（１）","曲目等申込書","予約プログラム申込書","大学出演者名簿","封筒宛先（２）","楽器名略号一覧","※連盟使用欄１","※連盟使用欄２","※連盟使用欄３"],"not_rendered":{"charts":0,"images":2,"macros":1,"external_links":2,"defined_names":19,"comments":0,"pivot_tables":0},"unopened":[],"bounds":{"document_bytes":16777216,"sheet_cells":100000,"rows_first":2000,"rows_last":500,"rows_between":2000,"halvings":0,"cell_chars":16384,"cell_head_chars":4096},"cells_cut":0,"cells_raw":0,"read":"whole","date_system":"1900"}

{"sheet":"参加申込みについて","index":0,"n_rows":76,"n_cols":10,"rows_kept":76,"cut":false,"hidden":false,"merged":[[10,7,15,45],[60,7,65,45],[64,3,66,3],[64,4,66,4],[60,4,62,4],[63,3,63,4],[34,7,39,45],[12,1,13,1],[34,4,35,4],[12,3,12,4],[13,3,16,3],[13,4,16,4],[67,3,67,4],[55,1,55,2],[29,1,29,2],[5,1,5,2],[10,4,11,4],[36,1,37,1],[17,4,18,4],[17,3,18,3],[41,3,41,4],[42,3,43,3],[42,4,43,4],[36,3,36,4],[37,3,40,3],[37,4,40,4],[63,1,64,1],[60,3,62,3]]}
[null,null,null,null,null,null,null,null,null,"　※ご覧になりたい部門のボタンを押してください。"]
[null,null,"令和７年度(2025年)"]
[null,null,"第74回神奈川県吹奏楽コンクール神奈川県大会"]
[null,null,"出演団体提出書類"]
[]
[null,"小学生の部の参加申込みについて"]
[]
[null,"　※提出書類は、すべてこのファイルにあります。"]
[]
[null,"内　　容","部数・金額","提出方法","提出期限","備考"]
[null," ①　参加申込書","１部（原本　Ａ４サイズ）","郵送\n（レターパックプラス（赤））","5月９日（金）\n当日消印有効",null,null,"←　必要事項を入力し、申し込み期間内に提出（印刷・郵送：レターパックプラス（赤））してください。\n　　※記入（入力）上の注意点については、参加要項をご確認ください。\n\n\n　　※レターパックプラス（赤）は、ポストに投函できますが、回収時間を過ぎると\n　　　その日の消印になりませんので、ご注意ください。"]
[null," ②　大会参加費","10，000円","振込"]
[null," ③　曲目等申込書","ファイルの送信","5月25日（日）"]
[null,null,"5部（原本＋コピー4部）","説明会受付","5月25日（日）"]
[" "," ④　自由曲スコアの表紙と第１ページのコピー","１部（Ａ４サイズ）"]
[null," ⑤　演奏許諾書のコピー（必要な場合）","１部（Ａ４サイズ）"]
[null," ⑥　入場券・プログラム予約申込書","１部（原本　Ａ４サイズ）"]
[null," ⑦　予約入場券代金","1，000円／枚","振込","6月9日（月）\n当日消印有効"]
[null," ⑧　予約プログラム代金","400円／部"]
[null,"※郵送は、レターパックプラス（赤）でお送りください。"]
[null,"＜送付先＞"]
[null,"　　神奈川県吹奏楽連盟"]
[null,"　　　〒221-0835　横浜市神奈川区鶴屋町3-35-11　ストーク横浜二番館805号"]
[null,"　　　FAX　045-548-3900　 E-mail　kanasui@cb3.so-net.ne.jp"]
[]
[null,null,"※提出期限は厳守してください。"]
[]
[]
[]
[null,"大学の部の参加申込みについて"]
[]
[null,"　※提出書類は、すべてこのファイルにあります。"]
[]
[null,"内　　容","部数・金額","提出方法","提出期限","備考"]
[null," ①　参加申込書","１部（原本　Ａ４サイズ）","郵送\n（レターパックプラス（赤））","６月４日（水）\n当日消印有効",null,null,"←　必要事項を入力し、申し込み期間内に提出（印刷・郵送：レターパックプラス（赤））してください。\n　　※記入（入力）上の注意点については、参加要項をご確認ください。\n\n\n　　※レターパックプラス（赤）は、ポストに投函できますが、回収時間を過ぎると\n　　　その日の消印になりませんので、ご注意ください。"]
[null," ②　大会参加費","15，000円","振込"]
[null," ③　曲目等申込書","ファイルの送信","６月25日（水）"]
[null,null,"１部（原本）","郵送\n（レターパックプラス（赤））","６月25日（水）\n当日消印有効"]
[" "," ④　自由曲スコアの表紙と第１ページのコピー","１部（Ａ４サイズ）"]
[null," ⑤　演奏許諾書のコピー（必要な場合）","１部（Ａ４サイズ）"]
[null," ⑥　出演者名簿","１部（原本　Ａ４サイズ）"]
[null," ⑦　入場券・プログラム予約申込書","１部（原本　Ａ４サイズ）","7月13日（日）説明会受付"]
[null," ⑧　予約入場券代金","1，500円／枚","振込","７月22日（火）"]
[null," ⑨　予約プログラム代金","400円／部"]
[null,"※郵送は、レターパックプラス（赤）でお送りください。"]
[null,"＜送付先＞"]
[null,"　　神奈川県吹奏楽連盟"]
[null,"　　　〒221-0835　横浜市神奈川区鶴屋町3-35-11　ストーク横浜二番館805号"]
[null,"　　　FAX　045-548-3900　 E-mail　kanasui@cb3.so-net.ne.jp"]
[]
[null,null,"※提出期限は厳守してください。"]
[]
[]
[]
[]
[null,"職場・一般の部の参加申込みについて"]
[]
[null,"　※提出書類は、すべてこのファイルにあります。"]
[]
[null,"内　　容","部数・金額","提出方法","提出期限","備考"]
[null," ①　参加申込書","１部（原本　Ａ４サイズ）","郵送\n（レターパックプラス（赤））","６月４日（水）\n当日消印有効",null,null,"←　必要事項を入力し、申し込み期間内に提出（印刷・郵送：レターパックプラス（赤））してください。\n　　※記入（入力）上の注意点については、参加要項をご確認ください。\n\n\n　　※レターパックプラス（赤）は、ポストに投函できますが、回収時間を過ぎると\n　　　その日の消印になりませんので、ご注意ください。"]
[null," ②　大会参加費","15，000円"]
[null," ③　団員名簿（印刷したもの）","１部（Ａ４サイズ）"]
[null," ④　曲目等申込書","ファイルの送信","６月25日（水）"]
[null,null,"１部（原本　Ａ４サイズ）","郵送\n（レターパックプラス（赤））","６月25日（水）\n当日消印有効"]
[" "," ⑤　自由曲スコアの表紙と第１ページのコピー","１部（Ａ４サイズ）"]
[null," ⑥　演奏許諾書のコピー（必要な場合）","１部（Ａ４サイズ）"]
[null," ⑦　団員名簿と出演者名簿","USBフラッシュメモリー","7月13日（日）説明会受付"]
[null," ⑧　個人参加負担金","1，500円／人","振込","７月22日（火）"]
[null,"※郵送は、レターパックプラス（赤）でお送りください。"]
[null,"＜送付先＞"]
[null,"　　神奈川県吹奏楽連盟"]
[null,"　　　〒221-0835　横浜市神奈川区鶴屋町3-35-11　ストーク横浜二番館805号"]
[null,"　　　FAX　045-548-3900　 E-mail　kanasui@cb3.so-net.ne.jp"]
[]
[null,null,"※提出期限は厳守してください。"]

{"sheet":"参加申込書","index":1,"n_rows":35,"n_cols":24,"rows_kept":35,"cut":false,"hidden":false,"merged":[[0,12,3,22],[17,3,17,7],[0,0,0,10],[1,0,1,10],[2,0,2,10],[10,2,10,10],[11,2,11,5],[11,7,11,10],[24,6,27,10],[23,0,27,4],[7,0,9,0],[10,0,11,0],[4,1,4,6],[5,1,5,10],[6,1,6,10],[7,7,7,10],[8,7,8,10],[9,2,9,4],[9,5,9,10],[12,1,12,2],[12,3,12,10],[7,2,7,5],[8,2,8,5],[7,6,8,6]]}
["令和７年度(2025年)",null,null,null,null,null,null,null,null,null,null,null,"←　この書式に入力・印刷し、申し込み期間内に提出してください。\n　　なお、記入（入力）上の注意点については、参加要項をご確認ください。\n　　１　期日までに申し込みのない場合は、理由の如何に関わらず受け付けない。\n　　２　期日前の申し込みは受け付けない。\n　　３　申込書に不備がある場合は、受け付けない。      ",null,null,null,null,null,null,null,null,null,null,"小学生の部"]
["　　　第74回神奈川県吹奏楽コンクール",null,null,null,null,null,null,null,null,null,null,null,null,null,null,null,null,null,null,null,null,null,null,"大学の部"]
["県大会参加申込書",null,null,null,null,null,null,null,null,null,null,null,null,null,null,null,null,null,null,null,null,null,null,"職場・一般の部"]
[]
["参 加 部 門",null,null,null,null,null,null,"整理番号\n（記入しない）",{"$f":"IF(B5=\"小学生の部\",\"小\",IF(B5=\"大学の部\",\"大\",IF(B5=\"職場・一般の部\",\"職・一\",\"\")))","v":""},"－",null,null,"←　参加部門は、プルダウンメニューから選択してください。"]
["ふ り が な"]
["団　 体 　名"]
["連絡責任者","ふりがな",null,null,null,null,"㊞","携帯電話番号"]
[null,"氏　名",null,null,null,null,null,null,null,null,null,null,"←　携帯電話番号は、半角数字・ハイフンなしで入力してください。"]
[null,"〒",null,null,null,null,null,null,null,null,null,null,"←　郵便番号は、半角数字・ハイフンを入れて入力してください。"]
["（小学校は\n学校所在地）","住　所"]
[null,"ＴＥＬ",null,null,null,null,"ＦＡＸ",null,null,null,null,null,"←　TEL　及び　FAX　は半角数字で市外局番からハイフンなしで入力してください。"]
[null,"メールアドレス",null,null,null,null,null,null,null,null,null,null,"←　メールアドレスは、半角英数で入力してください。"]
[]
["　上記のとおり、第74回神奈川県吹奏楽コンクールへの参加を申込みます。"]
["　　　令和７年(2025年)",null,null,"月",null,"日",null,null,null,null,null,null,"←　月日を入力してください。"]
[]
["　　　学校長・団体長（代表者）　　　　　　　　　　　　　　　　　　　　　",null,null,null,null,null,null,null,"職印",null,null,null,"←　一般の部の場合は、代表者印でお願いします。"]
[]
["　　　神奈川県吹奏楽連盟理事長"]
["　　　　　千　田　　　　豊　　様"]
[]
[null,null,null,null,null,null,null,null,null,null,null,null,"←　提出は、郵送（レターパックプラス（赤））でお願いします。"]
["年度会費の振込受領証　または\n各連盟発行の年度会費領収証\nのコピーを貼付けすること"]
[null,null,null,null,null,null,"大会参加費等の振込受領証\nのコピーを貼付けすること"]
[]
[]
[]
[]
[]
["　※参加申込書に記入された内容は、コンクール運営業務以外の目的では使用いたしません。"]
["　※必要事項を記入のうえ、指定された期間内に郵送（レターパックプラス（赤））で１部（原本Ａ４サイズ）"]
["　　提出（必ず控えをとっておくこと）すること。（当日消印有効）"]
["　※期間内に申込みのない場合は、理由のいかんに関わらず受け付けない。また、申込み期間前の申込みも"]
["　　受け付けない。"]

{"sheet":"封筒宛先（１）","index":2,"n_rows":45,"n_cols":53,"rows_kept":45,"cut":false,"hidden":false,"merged":[[37,1,37,3],[2,23,9,33],[39,23,40,31],[34,23,38,32],[23,23,25,30],[28,23,29,31],[0,20,3,20],[2,5,3,5],[2,6,3,6],[0,8,3,8],[0,10,3,10],[0,12,3,12],[0,14,3,14],[0,16,3,16],[0,18,3,18],[1,0,3,0],[1,1,3,1],[1,2,3,2],[2,3,3,3],[2,4,3,4]]}
[null,null,null,null,null,null,null,null,2,null,2,null,1,null,0,null,8,null,3,null,5]
[]
[null,null,null,null,null,null,null,null,null,null,null,null,null,null,null,null,null,null,null,null,null,null,null,"←　参加申込書提出用です。\n　　　　よろしければご利用ください\n　　　　※小学生の部、大学の部、職場・一般の部\n　　　　（用紙：Ｂ５縦）\n　　　　線に合わせて切って、貼ってください。",null,null,null,null,null,null,null,null,null,null,null,null,null,0,"","","","","","","","","","","","",null,null,""]
[null,null,null,null,null,null,null,null,null,null,null,null,null,null,null,null,null,null,null,null,null,null,null,null,null,null,null,null,null,null,null,null,null,null,{"$f":"IF(参加申込書!B5=\"小学生の部\",1,IF(参加申込書!B5=\"大学の部\",2,IF(参加申込書!B5=\"職場・一般の部\",3,\"\")))","v":""},null,"小学生",1,"５月９日（金）当日消印有効"]
[null,null,null,null,null,null,null,null,null,null,null,null,null,null,null,null,null,null,null,null,null,null,null,null,null,null,null,null,null,null,null,null,null,null,null,null,"大学",2,"６月４日（水）当日消印有効"]
[null,null,null,null,null,null,null,null,null,null,null,null,null,null,null,null,null,null,null,null,null,null,null,null,null,null,null,null,null,null,null,null,null,null,null,null,"職場・一般",3,"６月４日（水）当日消印有効"]
[null,null,null,null,null,null,null,null,null,null,null,null,null,null,null,null,null,null,null,null,null,null,null,null,null,null,null,null,null,null,null,null,null,null,null,null,null,"□　②参団員名簿（印刷したもの　職場・一般の部のみ）"]
["横浜市神奈川区鶴屋町３－３５－１１"]
[]
[null,"ストーク横浜二番館８０５号"]
[]
[null,null,null,null,null,null,null,null,null,null,null,null,null,null,null,null,null,null,null,null,null,null,null,null,null,null,null,null,null,{"$f":"IF(X12=\"1　横浜\",1,IF(X12=\"2　川崎\",2,IF(X12=\"3　相模原\",3,IF(X12=\"4　県南\",4,IF(X12=\"5　県央\",5,IF(X12=\"6　西湘\",6,IF(X12=\"7　湘南\",7,\"\")))))))","v":""}]
[null,null,null,null,null,null,null,null,null,null,null,null,null,null,null,null,null,null,null,null,null,null,null,null,null,{"$f":"IF(AA8=2,BA4,\"\")","v":""}]
[null,null,"神奈川県吹奏楽連盟　事務局　宛"]
[]
[]
[]
[]
[]
[]
[]
[]
[null,null,"差出人"]
[null,null,null,null,null,null,null,null,null,null,null,null,null,null,null,null,null,null,null,null,null,null,null,"レターパックプラス（赤色）で郵送してください。"]
[null,null,null,null,"〒",{"$f":"+参加申込書!C10","v":0}]
[]
[null,null,null,null,null,{"$f":"+参加申込書!C11","v":0}]
[]
[null,null,null,null,null,null,{"$f":"+参加申込書!B7","v":0},null,null,null,null,null,null,null,null,null,null,null,null,null,null,null,null,"←　差出人は、参加申込書から転記されます。"]
[]
[null,null,null,null,null,null,{"$f":"+参加申込書!C9","v":0}]
[]
[null,null,null,null,null,"TEL",null,{"$f":"+参加申込書!C12","v":0}]
[]
[null,null,null,null,null,null,null,null,null,null,null,null,null,null,null,null,null,null,null,null,null,null,null,"←　参加申込書で部門を選択すると、\n　　　部門名、提出締切日、提出物が表示されます。"]
[null,null,null,null,"吹奏楽コンクール参加申込書在中"]
[null,null,null,null,{"$f":"VLOOKUP(AI4,AL4:AM6,2)","v":{"$error":"#N/A"}},null,null,null,null,null,null,null,null,null,null,{"$f":"+参加申込書!B5","v":0}]
[null,"内容物の確認",null,null,"□　①参加申込書（原本１部）",null,null,null,null,null,null,null,null,null,{"$f":"IF($AA$8=2,$AJ$17,\"\")","v":""},{"$f":"IF($AA$8=2,$AK$17,\"\")","v":""}]
[null,"（チェック）",null,null,{"$f":"IF(AI4=3,AL7,\"\")","v":""}]
[null,null,null,null,null,null,null,null,null,null,null,null,null,null,null,null,null,null,null,null,null,null,null,"提出物を確認したらチェックをしましょう。"]
[]
[]
[]
[]
[null,null,null,null,null,null,null,null,null,null,"き　　り　　と　　り"]

{"sheet":"曲目等申込書","index":3,"n_rows":76,"n_cols":67,"rows_kept":76,"cut":false,"hidden":false,"merged":[[27,25,27,80],[0,25,5,55],[35,7,35,23],[36,0,37,2],[36,7,36,23],[37,3,37,5],[37,6,37,13],[37,14,37,23],[30,9,30,11],[30,12,30,14],[30,15,30,23],[31,0,32,2],[31,3,33,5],[31,7,31,23],[32,7,32,23],[33,0,35,2],[34,3,36,5],[34,7,34,23],[29,0,29,2],[29,3,30,6],[29,7,29,8],[29,11,29,12],[29,13,29,18],[29,19,29,20],[29,21,29,22],[30,0,30,2],[30,7,30,8],[26,1,26,2],[26,3,26,4],[26,5,26,18],[26,19,26,23],[27,17,27,20],[27,21,27,22],[28,17,28,23],[27,0,28,2],[27,3,28,16],[19,25,20,60],[20,3,20,4],[20,5,20,23],[21,3,21,4],[21,5,21,23],[22,1,23,2],[22,3,22,4],[22,5,22,10],[22,11,22,12],[22,13,22,23],[23,18,23,21],[23,22,23,23],[18,0,18,2],[18,3,18,23],[19,0,26,0],[19,1,21,2],[19,3,19,4],[19,5,19,23],[23,3,23,4],[23,5,23,10],[23,11,23,12],[23,13,23,15],[24,1,25,2],[24,3,24,4],[24,5,24,10],[24,11,24,12],[24,13,24,23],[25,3,25,4],[25,5,25,10],[25,11,25,23],[17,0,17,2],[17,3,17,6],[17,7,17,8],[17,9,17,11],[17,12,17,16],[17,17,17,23],[15,0,15,2],[15,3,15,11],[15,12,16,16],[15,17,16,20],[15,21,16,23],[16,0,16,2],[16,3,16,11],[13,14,13,23],[14,7,14,23],[9,0,11,2],[9,3,9,4],[9,5,9,11],[9,12,9,16],[9,17,9,20],[9,21,9,23],[10,3,10,23],[11,3,11,4],[11,5,11,11],[11,12,11,13],[11,14,11,23],[12,0,12,2],[12,3,12,11],[12,12,13,13],[12,14,12,23],[13,0,14,2],[13,3,13,11],[6,26,8,56],[6,25,8,25],[7,0,7,2],[7,3,7,23],[8,0,8,2],[8,3,8,23],[0,0,0,23],[1,0,1,23],[4,17,4,18],[4,20,4,21],[6,0,6,2],[6,3,6,11],[6,12,6,16],[6,17,6,19],[6,21,6,23]]}
["　　令和７年度（2025年）",null,null,null,null,null,null,null,null,null,null,null,null,null,null,null,null,null,null,null,null,null,null,null,null,"←　この書式に入力・印刷し、説明会で提出してください。\n 　　なお、記入（入力）上の注意点については、参加要項を\n　　　ご確認ください。",null,null,null,null,null,null,null,null,null,null,null,null,null,null,null,null,null,null,null,null,null,null,null,null,null,null,null,null,null,null,null,null,"小学生","有","県内","使用する","あり","上手袖","Ⅰ　祝い唄と踊り唄による幻想曲","販売","ア"]
["　　　第74回神奈川県吹奏楽コンクール曲目等申込書",null,null,null,null,null,null,null,null,null,null,null,null,null,null,null,null,null,null,null,null,null,null,null,null,null,null,null,null,null,null,null,null,null,null,null,null,null,null,null,null,null,null,null,null,null,null,null,null,null,null,null,null,null,null,null,null,null,"大学","無","県外","使用しない","なし","下手袖","Ⅱ　ステップ、スキップ、ノンストップ","レンタル","イ"]
[null,null,null,null,null,null,null,null,null,null,null,null,null,null,null,null,null,null,null,null,null,null,null,null,null,null,null,null,null,null,null,null,null,null,null,null,null,null,null,null,null,null,null,null,null,null,null,null,null,null,null,null,null,null,null,null,null,null,null,null,null,null,null,"その他","Ⅲ　マーチ「メモリーズ・リフレイン」","未出版","ウ"]
["神奈川県吹奏楽連盟",null,null,null,null,null,null,null,null,null,null,null,null,null,null,null,null,null,null,null,null,null,null,null,null,null,null,null,null,null,null,null,null,null,null,null,null,null,null,null,null,null,null,null,null,null,null,null,null,null,null,null,null,null,null,null,null,null,"職場・一般",null,null,null,null,null,"Ⅳ　Rhapsody ～ Eclipse",null,"エ"]
[null,"理事長　　千　田　　　　豊　様",null,null,null,null,null,null,null,null,null,null,null,"令和７年（2025年）",null,null,null,null,null,"月",null,null,"日",null,null,null,null,null,null,null,null,null,null,null,null,null,null,null,null,null,null,null,null,null,null,null,null,null,null,null,null,null,null,null,null,null,null,null,null,null,null,null,null,null,null,null,"オ"]
[]
["部　　　門",null,null,{"$f":"+参加申込書!B5","v":0},null,null,null,null,null,null,null,null,"整理番号\n（記入しない）",null,null,null,null,{"$f":"IF(D7=\"小学生の部\",\"小\",IF(D7=\"大学の部\",\"大\",IF(D7=\"職場・一般の部\",\"職・一\",\"\")))","v":""},{"$f":"IF(L7=\"小学生\",\"小\",IF(L7=\"大学\",\"大\",IF(L7=\"職場・一般\",\"職・一\",\"\")))","v":""},{"$f":"IF(#REF!=\"小学生\",\"小\",IF(#REF!=\"大学\",\"大\",IF(#REF!=\"職場・一般\",\"職・一\",\"\")))","v":{"$error":"#REF!"}},"－",null,null,null,null,"←","部門、団体名、ふりがな、団体所在地（〒番号、住所、電話番号、ＦＡＸ番号）、連絡責任者（氏名、ふりがな、携帯電話番号、\nメールアドレス）は、参加申込書から自動転記されます。"]
["ふ り が な",null,null,{"$f":"+参加申込書!B6","v":0}]
["団　体　名",null,null,{"$f":"+参加申込書!B7","v":0}]
["団体所在地\n（一般は連絡責任者住所）",null,null,"〒",null,{"$f":"+参加申込書!C10","v":0},null,null,null,null,null,null,"部員数（団員数）",null,null,null,null,null,null,null,null,"名",null,null,null,"←　部員数（団員数）は、半角数字で入力してください。"]
[null,null,null,{"$f":"+参加申込書!C11","v":0}]
[null,null,null,"ＴＥＬ",null,{"$f":"+参加申込書!C12","v":0},null,null,null,null,null,null,"ＦＡＸ",null,{"$f":"+参加申込書!H12","v":0}]
["ふりがな",null,null,{"$f":"+参加申込書!C8","v":0},null,null,null,null,null,null,null,null,"㊞",null,"携帯電話番号"]
["連絡責任者",null,null,{"$f":"+参加申込書!C9","v":0},null,null,null,null,null,null,null,null,null,null,{"$f":"+参加申込書!H9","v":0}]
[null,null,null,"メールアドレス",null,null,null,{"$f":"+参加申込書!D13","v":0}]
["ふ り が な",null,null,null,null,null,null,null,null,null,null,null,"出演者数\n（指揮者を除く）",null,null,null,null,null,null,null,null,"名",null,null,null,"←　出演者数（指揮者を除く）は、半角数字で入力してください。"]
["指揮者名",null,null,null,null,null,null,null,null,null,null,null,null,null,null,null,null,null,null,null,null,null,null,null,null,"←　ピアノ使用（有無）は、プルダウンメニューから選択してください。"]
["他団体の指揮",null,null,null,null,null,null,"有の場合　→",null,null,null,null,"ピアノ",null,null,null,null,null,null,null,null,null,null,null,null,"←　他団体の指揮　については、プルダウンメニューから選択してください。"]
["課 題 曲",null,null,null,null,null,null,null,null,null,null,null,null,null,null,null,null,null,null,null,null,null,null,null,null,"←　課題曲　は、プルダウンメニューから選択してください。"]
["自　　　由　　　曲","曲　　名",null,"ふりがな",null,null,null,null,null,null,null,null,null,null,null,null,null,null,null,null,null,null,null,null,null,"←　演奏曲は、演奏順に（組曲、メドレー等も）すべて記入してください。\n　　提出後の変更はできません。"]
[null,null,null,"邦　　文"]
[null,null,null,"Spelling",null,null,null,null,null,null,null,null,null,null,null,null,null,null,null,null,null,null,null,null,null,"←　Spellingは、半角英数で入力してください。"]
[null,"作 曲 者",null,"ふりがな",null,null,null,null,null,null,null,"Spelling",null,null,null,null,null,null,null,null,null,null,null,null,null,"←　Spellingは、半角英数で入力してください。邦人の場合は、姓・名の順で入力してください。例：CHIDA Yutaka"]
[null,null,null,"邦　　文",null,null,null,null,null,null,null," 生 没 年",null,null,null,null,"年","～",null,null,null,null,"年",null,null,"←　生没年は、半角数字で入力してください。現在も存命の場合は、没年欄は存命と入力してください。不明の場合は、不明と入力してください。"]
[null,"編 曲 者",null,"ふりがな",null,null,null,null,null,null,null,"Spelling",null,null,null,null,null,null,null,null,null,null,null,null,null,"←　Spellingは、半角英数で入力してください。邦人の場合は、姓・名の順で入力してください。例：CHIDA Yutaka"]
[null,null,null,"邦　　文"]
[null,"使用楽譜",null,"出版社名",null,null,null,null,null,null,null,null,null,null,null,null,null,null,null,null,null,null,null,null,null,"←　使用楽譜の右端の記入欄は、プルダウンメニューから選択してください。"]
["使用\n打楽器\n一覧\n（ハープを含む）",null,null,null,null,null,null,null,null,null,null,null,null,null,null,null,null,"搬入\n補助員",null,null,null,null,null,"名",null,"←　楽器名は、半角英数で楽器名略号一覧のシートを参照し、入力してください。楽器名略号一覧にない楽器名は、わかりやすく入力してください。\n　　ハープを使用する場合も、この欄に記入してください。\n←　コンクールの運営がスムーズに行えるよう、打楽器等搬入補助員を必ずつけることとする。ただし、その人数は20名以内とする、万が一、搬入\n　　補助員を増員せざるを得ない場合は、各支部理事長から指定の変更願にその理由と増員数を記入して、指定期日までに支部理事長を通して県吹\n　　奏楽連盟に申請（必着）し、県理事長の承認を得ることとする。ただし、承認されない場合があることを予め了承しておくこと。"]
[null,null,null,null,null,null,null,null,null,null,null,null,null,null,null,null,null,{"$f":"IF(OR(V28>=21,V28>=21),\"変更願の提出が必要です。\",\"\")","v":""},null,null,null,null,null,null,null,"←　搬入補助員数は、半角数字で入力してください。２１名以上の場合は、事前に「変更願」の提出が必要です。各支部理事長にお問い合わせください。"]
["オフステージ申請",null,null,"※「あり」の場合\n右のア～ウに記入",null,null,null,"ア　回数　",null,null,"回","イ　楽器",null,null,null,null,null,null,null,"人数",null,null,null,"名",null,"←　オフステージ申請（左端欄）は、プルダウンメニューから選択してください。オフステージ「あり」の場合は、右側のア・イ・ウのそれぞれの項目を記入してください。"]
[null,null,null,null,null,null,null,"ウ　演奏場所",null,null,null,null,"その他の場合は、場所を記入→",null,null,null,null,null,null,null,null,null,null,null,null,"←　ウ「演奏場所」の記入欄は、プルダウンメニューから選択してください。「その他」を選択した場合は、右の欄に場所を入力してください。"]
["著作権\nについて",null,null,"※演奏許諾を要しないもの",null,null,null,"ア　出版されている楽譜及び編曲楽譜で，わが国で演奏許諾を得られているものである。"]
[null,null,null,null,null,null,null,"イ　各国が定める作曲者の著作権保護期間を経過，またはすでに50年の保護期間が過ぎている"]
["右のア～オのいずれか該当する記号を選択してください。↓",null,null,null,null,null,null,"　　　（2018.12.30以前）ため編曲の承諾を要しないものである。"]
[null,null,null,"※演奏許諾を要するもの",null,null,null,"ウ　著作権の存在する曲を編曲したが，著作権者に編曲・演奏許諾を得ているものである。",null,null,null,null,null,null,null,null,null,null,null,null,null,null,null,null,null,"←　著作権について（左端欄）は、プルダウンメニューから選択してください。"]
[null,null,null,null,null,null,null,"エ　レンタル楽譜で，演奏許諾を得ているものである。"]
[null,null,null,null,null,null,null,"オ　自楽団のための委嘱作品あるいは編曲作品で未出版だが，演奏許諾を得ているものである。"]
[null,null,null,"許諾先",null,null,null,null,null,null,null,null,null,null,"※許諾書のコピー（Ａ４）を必ず添付してください。",null,null,null,null,null,null,null,null,null,null,"←　ウ・エ・オの場合は、許諾先を記入してください。許諾書（コピー可）をこの曲目等申込書と一緒に必ず提出してください。"]
["○記入された内容は、コンクール運営業務以外の目的では使用いたしません。（はっきりと正確に記入すること）　　"]
[{"$f":"IF($D$7=\"小学生の部\",+A69,IF($D$7=\"大学の部\",+A49,IF($D$7=\"職場・一般の部\",+A59)))","v":false},null,null,null,null,null,null,null,null,null,null,null,null,null,null,null,null,null,null,null,null,null,null,null,null,"←　部門に応じて、注意事項が表示されます。"]
[false]
[false]
[false]
[false]
[false]
[false]
[false]
[{"$f":"IF($D$7=\"大学の部\",+A57,\"\")","v":""}]
["※必要事項を記入のうえ、指定された期間内に参加申込書と一緒に郵送（レターパックプラス（赤））で提出すること。（当日消印有効）"]
["　・曲目等申込書は１部（原本）提出すること。提出後の曲目変更は認めません。必ず控え（コピー）をとっておくこと。"]
["　・自由曲スコアの表紙と第１ページ（作曲者、編曲者、出版社それぞれの和文及び欧文が確認できるページ。"]
["　　併せて、組曲等複数の楽章を演奏する場合は、演奏するそれぞれの楽章の和文、欧文が確認できるページ"]
["　　（または、各楽章のスコアの第１ページ目）のコピー（Ａ４サイズ）も提出すること。"]
["　　必ず団体名を記入すること。名及び編成が確認できるもの）のコピー（Ａ４サイズ、団体名記入）、"]
["　・演奏許諾書（Ａ４サイズ）等が必要なものを同封すること。"]
["　・出演者名簿１部（原本Ａ４サイズ）も同封すること。"]
["※期間内に申込みのない場合は、理由のいかんに関わらず受け付けない。また、期間前の申込みも受け付けない。"]
[]
["※必要事項を記入のうえ、指定された期間内に参加申込書と一緒に郵送（レターパックプラス（赤））で提出すること。（当日消印有効）"]
["　・曲目等申込書は１部（原本）提出すること。提出後の曲目変更は認めません。必ず控え（コピー）をとっておくこと。"]
["　・自由曲スコアの表紙と第１ページ（作曲者、編曲者、出版社それぞれの和文及び欧文が確認できるページ。"]
["　　併せて、組曲等複数の楽章を演奏する場合は、演奏するそれぞれの楽章の和文、欧文が確認できるページ"]
["　　（または、各楽章のスコアの第１ページ目）のコピー（Ａ４サイズ）も提出すること。"]
["　　必ず団体名を記入すること。名及び編成が確認できるもの）のコピー（Ａ４サイズ、団体名記入）、"]
["　・演奏許諾書（Ａ４サイズ）等が必要なものを同封すること。"]
["※期間内に申込みのない場合は、理由のいかんに関わらず受け付けない。また、期間前の申込みも受け付けない。"]
[]
[]
["※必要事項を記入のうえ、説明会で５部（原本＋コピー４部　Ａ４サイズ）提出すること。"]
["　・提出後の曲目変更は認めません。必ず控え（コピー）をとっておくこと。"]
["　・自由曲スコアの表紙と第１ページ（作曲者、編曲者、出版社それぞれの和文及び欧文が確認できるページ。"]
["　　併せて、組曲等複数の楽章を演奏する場合は、演奏するそれぞれの楽章の和文、欧文が確認できるページ"]
["　　（または、各楽章のスコアの第１ページ目）のコピー（Ａ４サイズ）も提出すること。"]
["　　必ず団体名を記入すること。名及び編成が確認できるもの）のコピー（Ａ４サイズ、団体名記入）、"]
["　・演奏許諾書（Ａ４サイズ）等が必要なものを同封すること。"]
["※期間内に申込みのない場合は、理由のいかんに関わらず受け付けない。また、期間前の申込みも受け付けない。"]

{"sheet":"予約プログラム申込書","index":4,"n_rows":41,"n_cols":8,"rows_kept":41,"cut":false,"hidden":false,"merged":[[15,7,16,17],[16,0,16,6],[22,2,22,6],[24,2,24,4],[1,7,4,14],[15,0,15,6],[22,7,25,15],[9,0,9,1],[13,3,13,4],[0,0,0,6],[1,0,1,6],[2,0,2,6],[5,0,5,6],[11,0,11,1]]}
["令和７年度(2025年)"]
["第７４回神奈川県吹奏楽コンクール",null,null,null,null,null,null,"←　この書式に入力・印刷し、説明会で提出してください。\n     なお、記入（入力）上の注意点については、参加要項を\n　　ご確認ください。"]
["県大会入場券・プログラム予約申込書"]
[]
[]
["※職場・一般の部　以外の団体は、説明会で必ず提出すること。　"]
[null,null,null,null,null,null,null,"←　太枠の３ヶ所に入力をしてください。（小学生の部は、出演順を除く2ヶ所）"]
["部門",{"$f":"+参加申込書!B5","v":0},null,"出演順",null,"番",null,"←　参加部門は、参加申込書から自動転記されます。"]
[null,null,null,null,null,null,null,"←　小学生の部は、出演順は空欄（未記入）のままで構いません。"]
["入場券予約枚数（＠１，５００円）",null,null,"枚","金額",{"$f":"+C10*1500","v":0},"円","←　進呈用プログラム（無料）は、５部あります。"]
[null,null,null,null,null,null,null,"←　金額欄は、自動計算になっています。"]
["プログラム予約部数（＠４００円）",null,null,"部","金額",{"$f":"+C12*400","v":0},"円","←　進呈用プログラム（無料）は、５部あります。"]
[null,null,null,null,null,null,null,"←　金額欄は、自動計算になっています。"]
[null,null,null,"合計金額",null,{"$f":"+F10+F12","v":0},"円"]
[]
[{"$f":"IF(B8=\"小学生の部\",+A29,IF(B8=\"中学生の部Ａ部門\",+A33,IF(B8=\"中学生の部Ｂ部門\",+A33,IF(B8=\"高校生の部Ａ部門\",+A33,IF(B8=\"高校生の部Ｂ部門\",+A33,IF(B8=\"大学の部\",+A37,IF(B8=\"職場・一般の部\",+A41)))))))","v":false},null,null,null,null,null,null,"←　部門に応じて、注意事項が表示されます。"]
[{"$f":"IF(B8=\"小学生の部\",+A30,IF(B8=\"中学生の部Ａ部門\",+A34,IF(B8=\"中学生の部Ｂ部門\",+A34,IF(B8=\"高校生の部Ａ部門\",+A34,IF(B8=\"高校生の部Ｂ部門\",+A34,IF(B8=\"大学の部\",+A38,IF(B8=\"職場・一般の部\",\"\")))))))","v":false}]
[]
[]
[null,"上記のとおり、プログラムの予約申込みをします。"]
[null,"　　令和７年（2025年）",null,"月",null,"日",null,"←　月日を入力してください。"]
[]
[null,"　　　団体名",{"$f":"+参加申込書!B7","v":0},null,null,null,null,"←　団体名と連絡責任者氏名は、参加申込書から自動転記されます。"]
[]
[null,"　　 連絡責任者",{"$f":"+参加申込書!C9","v":0},null,null,"㊞"]
[]
[]
["＜小学生の部＞"]
["①この予約申込書は、説明会（５月25日（日））で１部（原本）提出する。（０（ゼロ）の場合も提出すること）"]
["②代金は６月９日（月）までに綴じ込みの振込用紙（Ｐ２３）にて郵便振替で振り込むこと。なお、手数料は各団体の負担とする。"]
[]
["※中学生の部、高校生の部の場合"]
["①この予約申込書は、説明会（８月１（金））で提出する。（０（ゼロ）の場合も提出すること）"]
["②代金は「予約入場券代金」と一緒に８月５日（火）までに綴じ込みの振込用紙(P25)にて郵便振替で振り込むこと。なお、手数料は各団体の負担とする。"]
[]
["※大学の部の場合"]
["①この予約申込書は、説明会（７月１３日（日））で提出する。（０（ゼロ）の場合も提出すること）"]
["②代金は「予約入場券代金」と一緒に７月２２日（火）までに綴じ込みの振込用紙(P23)にて郵便振替で振り込むこと。なお、手数料は各団体の負担とする。"]
[]
["＜職場・一般の部＞"]
["※個人参加負担金には、入場券代金及びプログラム代金が含まれるため、プログラムの予約受付は行わない。"]

{"sheet":"大学出演者名簿","index":5,"n_rows":39,"n_cols":18,"rows_kept":39,"cut":false,"hidden":false,"merged":[[0,0,0,11],[0,12,0,13],[0,15,2,24],[1,0,1,11],[3,0,3,2],[3,3,3,6],[3,7,3,9],[3,10,3,13],[3,16,3,17],[4,1,4,2],[4,8,4,9],[5,1,5,2],[5,8,5,9],[6,1,6,2],[6,8,6,9],[7,1,7,2],[7,8,7,9],[8,1,8,2],[8,8,8,9],[9,1,9,2],[9,8,9,9],[10,1,10,2],[10,8,10,9],[11,1,11,2],[11,8,11,9],[12,1,12,2],[12,8,12,9],[13,1,13,2],[13,8,13,9],[14,1,14,2],[14,8,14,9],[15,1,15,2],[15,8,15,9],[16,1,16,2],[16,8,16,9],[17,1,17,2],[17,8,17,9],[18,1,18,2],[18,8,18,9],[19,1,19,2],[19,8,19,9],[20,1,20,2],[20,8,20,9],[21,1,21,2],[21,8,21,9],[22,1,22,2],[22,8,22,9],[23,1,23,2],[23,8,23,9],[24,1,24,2],[24,8,24,9],[25,1,25,2],[25,8,25,9],[26,1,26,2],[26,8,26,9],[27,1,27,2],[27,8,27,9],[28,1,28,2],[28,8,28,9],[29,1,29,2],[29,8,29,9],[30,1,30,2],[30,8,30,9],[31,1,31,2],[31,8,31,9],[32,1,32,2],[34,0,34,13],[38,0,40,12]]}
["令和７年度（2025年）",null,null,null,null,null,null,null,null,null,null,null,"整理番号\n（記入しない）",null,null,"←　必要事項を入力してから印刷し、曲目等申込書と一緒に、\n　　郵送（レターパックプラス（赤））にて提出してください。\n　　　※記入（入力）上の注意点については、参加要項をご確認ください。"]
["第74回　神奈川県吹奏楽コンクール出演者名簿（大学の部用）",null,null,null,null,null,null,null,null,null,null,null," 大 －"]
[]
["団　体　名",null,null,null,null,null,null,"連絡責任者氏名",null,null,"　　　　　　　　　　　　　　　　　",null,null,null,null,null,"※参考　\n楽器名略号一覧"]
["No","ﾊﾟｰﾄ",null,"氏　　　名","学部","学科","学年","No","ﾊﾟｰﾄ",null,"氏　　　　名","学部","学科","学年",null,null,"略　　号","楽　器　名"]
[1,null,null,null,null,null,null,29,null,null,null,null,null,null,null,null,"Picc.","Piccolo"]
[2,null,null,null,null,null,null,30,null,null,null,null,null,null,null,null,"Fl.","Flute"]
[3,null,null,null,null,null,null,31,null,null,null,null,null,null,null,null,"A.Fl.","Alto Flute"]
[4,null,null,null,null,null,null,32,null,null,null,null,null,null,null,null,"Ob.","Oboe"]
[5,null,null,null,null,null,null,33,null,null,null,null,null,null,null,null,"E.Hr.","English Horn"]
[6,null,null,null,null,null,null,34,null,null,null,null,null,null,null,null,"Bsn.","Bassoon"]
[7,null,null,null,null,null,null,35,null,null,null,null,null,null,null,null,"EsCl.","Es Clarinet"]
[8,null,null,null,null,null,null,36,null,null,null,null,null,null,null,null,"Cl.","Clarinet"]
[9,null,null,null,null,null,null,37,null,null,null,null,null,null,null,null,"A.Cl.","Alto Clarinet"]
[10,null,null,null,null,null,null,38,null,null,null,null,null,null,null,null,"Basset.","Basset Horn"]
[11,null,null,null,null,null,null,39,null,null,null,null,null,null,null,null,"B.Cl.","Bass Clarinet"]
[12,null,null,null,null,null,null,40,null,null,null,null,null,null,null,null,"C.A.Cl.","Contraalto Clarinet"]
[13,null,null,null,null,null,null,41,null,null,null,null,null,null,null,null,"C.B.Cl.","Contrabass　Clarinet"]
[14,null,null,null,null,null,null,42,null,null,null,null,null,null,null,null,"S.Sax.","Soprano Saxophone"]
[15,null,null,null,null,null,null,43,null,null,null,null,null,null,null,null,"A.Sax.","Alto Saxophone"]
[16,null,null,null,null,null,null,44,null,null,null,null,null,null,null,null,"T.Sax.","Tenor Saxophone"]
[17,null,null,null,null,null,null,45,null,null,null,null,null,null,null,null,"B.Sax.","Baritone Saxophone"]
[18,null,null,null,null,null,null,46,null,null,null,null,null,null,null,null,"P.Trp.","Piccolo Trumpet"]
[19,null,null,null,null,null,null,47,null,null,null,null,null,null,null,null,"Trp.","Trumpet"]
[20,null,null,null,null,null,null,48,null,null,null,null,null,null,null,null,"Cor.","Cornet"]
[21,null,null,null,null,null,null,49,null,null,null,null,null,null,null,null,"Flug.","Flugelhorn"]
[22,null,null,null,null,null,null,50,null,null,null,null,null,null,null,null,"Hrn.","French Horn"]
[23,null,null,null,null,null,null,51,null,null,null,null,null,null,null,null,"Trb.","Trombone"]
[24,null,null,null,null,null,null,52,null,null,null,null,null,null,null,null,"B.Trb.","Bass Trombone"]
[25,null,null,null,null,null,null,53,null,null,null,null,null,null,null,null,"Euph.","Euphonium"]
[26,null,null,null,null,null,null,54,null,null,null,null,null,null,null,null,"Bari.","Baritone"]
[27,null,null,null,null,null,null,55,null,null,null,null,null,null,null,null,"Tub.","Tuba"]
[28,null,null,null,null,null,null,null,null,null,null,null,null,null,null,null,"St.Bs.","String Bass"]
["※パート名は、略記号で記入する。（例：Fl.  Cl.  Trp.  Euph.  Timp. など）",null,null,null,null,null,null,null,null,null,null,null,null,null,null,null,"Timp.","Timpani"]
["※この名簿は曲目等申込書と一緒に６月25日（水）（※当日消印有効）までに郵送\n　（レターパックプラス（赤））で１部提出（原本Ａ４サイズ）すること。",null,null,null,null,null,null,null,null,null,null,null,null,null,null,null,"Perc.","Percussion"]
[]
[null,null,null,null,null,null,"ｰ　21　ｰ"]
[]
["　↑　参加要項（Ｐ21）の提出方法は、誤りです。"]

{"sheet":"封筒宛先（２）","index":6,"n_rows":45,"n_cols":53,"rows_kept":45,"cut":false,"hidden":false,"merged":[[23,23,25,30],[28,23,29,31],[34,23,38,32],[37,1,37,3],[39,23,40,31],[0,20,3,20],[1,0,3,0],[1,1,3,1],[1,2,3,2],[2,3,3,3],[2,4,3,4],[2,5,3,5],[2,6,3,6],[0,8,3,8],[0,10,3,10],[0,12,3,12],[0,14,3,14],[0,16,3,16],[0,18,3,18],[2,23,9,33]]}
[null,null,null,null,null,null,null,null,2,null,2,null,1,null,0,null,8,null,3,null,5]
[]
[null,null,null,null,null,null,null,null,null,null,null,null,null,null,null,null,null,null,null,null,null,null,null,"←　曲目等申込書他の提出用です。\n　　　　よろしければご利用ください\n　　　　※大学の部、職場・一般の部\n　　　　（用紙：Ｂ５縦）\n　　　　線に合わせて切って、貼ってください。",null,null,null,null,null,null,null,null,null,null,null,null,null,0,"","","","","","","","","","","","",null,null,""]
[null,null,null,null,null,null,null,null,null,null,null,null,null,null,null,null,null,null,null,null,null,null,null,null,null,null,null,null,null,null,null,null,null,null,{"$f":"IF(参加申込書!B5=\"小学生の部\",1,IF(参加申込書!B5=\"大学の部\",2,IF(参加申込書!B5=\"職場・一般の部\",3,\"\")))","v":""},null,"小学生",1,"５月９日（金）当日消印有効"]
[null,null,null,null,null,null,null,null,null,null,null,null,null,null,null,null,null,null,null,null,null,null,null,null,null,null,null,null,null,null,null,null,null,null,null,null,"大学",2,"６月25日（水）当日消印有効"]
[null,null,null,null,null,null,null,null,null,null,null,null,null,null,null,null,null,null,null,null,null,null,null,null,null,null,null,null,null,null,null,null,null,null,null,null,"職場・一般",3,"６月25日（水）当日消印有効"]
[null,null,null,null,null,null,null,null,null,null,null,null,null,null,null,null,null,null,null,null,null,null,null,null,null,null,null,null,null,null,null,null,null,null,null,null,null,"□　④出演者名簿（大学の部のみ）"]
["横浜市神奈川区鶴屋町３－３５－１１"]
[]
[null,"ストーク横浜二番館８０５号"]
[]
[null,null,null,null,null,null,null,null,null,null,null,null,null,null,null,null,null,null,null,null,null,null,null,null,null,null,null,null,null,{"$f":"IF(X12=\"1　横浜\",1,IF(X12=\"2　川崎\",2,IF(X12=\"3　相模原\",3,IF(X12=\"4　県南\",4,IF(X12=\"5　県央\",5,IF(X12=\"6　西湘\",6,IF(X12=\"7　湘南\",7,\"\")))))))","v":""}]
[null,null,null,null,null,null,null,null,null,null,null,null,null,null,null,null,null,null,null,null,null,null,null,null,null,{"$f":"IF(AA8=2,BA4,\"\")","v":""}]
[null,null,"神奈川県吹奏楽連盟　事務局　宛"]
[]
[]
[]
[]
[]
[]
[]
[]
[null,null,"差出人"]
[null,null,null,null,null,null,null,null,null,null,null,null,null,null,null,null,null,null,null,null,null,null,null,"レターパックプラス（赤色）で郵送してください。"]
[null,null,null,null,"〒",{"$f":"+参加申込書!C10","v":0}]
[]
[null,null,null,null,null,{"$f":"+参加申込書!C11","v":0}]
[]
[null,null,null,null,null,null,{"$f":"+参加申込書!B7","v":0},null,null,null,null,null,null,null,null,null,null,null,null,null,null,null,null,"←　差出人は、参加申込書から転記されます。"]
[]
[null,null,null,null,null,null,{"$f":"+参加申込書!C9","v":0}]
[]
[null,null,null,null,null,"TEL",null,{"$f":"+参加申込書!C12","v":0}]
[]
[null,null,null,null,null,null,null,null,null,null,null,null,null,null,null,null,null,null,null,null,null,null,null,"←　参加申込書で部門を選択すると、\n　　　部門名、提出締切日、提出物が表示されます。"]
[null,null,null,null,"吹奏楽コンクール関係書類在中"]
[null,null,null,null,{"$f":"VLOOKUP(AI4,AL4:AM6,2)","v":{"$error":"#N/A"}},null,null,null,null,null,null,null,null,null,null,{"$f":"+参加申込書!B5","v":0}]
[null,"内容物の確認",null,null,"□　①曲目等申込書",null,null,null,null,null,null,null,null,null,{"$f":"IF($AA$8=2,$AJ$17,\"\")","v":""},{"$f":"IF($AA$8=2,$AK$17,\"\")","v":""}]
[null,"（チェック）",null,null,"□　②自由曲スコア表紙及び第１ページのコピー"]
[null,null,null,null,"□　③演奏許諾書（必要な場合のみ）",null,null,null,null,null,null,null,null,null,null,null,null,null,null,null,null,null,null,"提出物を確認したらチェックをしましょう。"]
[null,null,null,null,{"$f":"IF(AI4=2,AL7,\"\")","v":""}]
[]
[]
[]
[null,null,null,null,null,null,null,null,null,null,"き　　り　　と　　り"]

{"sheet":"楽器名略号一覧","index":7,"n_rows":57,"n_cols":9,"rows_kept":57,"cut":false,"hidden":false,"merged":[]}
["楽器名略号一覧"]
["略　　号","楽　器　名"]
["Timp.","Timpani"]
["Perc.","Percussion"]
["S.Dr.","Snare Drum"]
["B.Dr.","Bass Drum"]
["Glock.","Glockenspiel"]
["Mari.","Marimba"]
["Xyl.","Xylophone"]
["Vib.","Vibraphone"]
[""]
[]
["以下の楽器は、昨年度使用された主なものです。参考にしてください。"]
["C.Cym.","Crash cymbal"]
["R.Cym.","Ride Cymbal"]
["S.Cym.","Suspended Cymbal"]
["Finger Cym.","Finger Cymbal"]
["Cym.","Cymbal"]
["Splash Cym.","Splash Cymbal"]
["H-H.Cym.","Hi-Hat.Cymbal"]
["Chinese Cym.","Chinese Cymbal"]
["Sizzle Cym.","Sizzle Cymbal"]
["Bongo","Bongo"]
["Cast.","Castanet"]
["Cabasa","Cabasa"]
["Chime","Concert chime"]
["China Gong","China Gong"]
["Claves","Claves"]
["Conga","Conga"]
["C.Bell","Cowbell"]
["Drs","Drums（Drum Set）"]
["F.Tom","F.Tom"]
["Field Drum","Field Drum"]
["T.Drum","Tenor Drum"]
["Flexatone","Flexatone"]
["Glass Harp","Glass Harp"]
["Gong","Gong（銅鑼、ドラ）"]
["Tam-Tam","Gong（銅鑼、ドラ）"]
["Guiro","Guiro"]
["Maracas","Maracas"]
["Ocean Drum","Ocean Drum"]
["Picc.S.Dr.","Piccol Snare Drum"]
["Rain Stick","Rain Stick"]
["Ratchet","Ratchet"]
["Shaker","Shaker"]
["Slapstick","Slapstick"]
["Tamb.","Tambarine"]
["T.Block","Temple Block（木魚）"]
["Timbales","Timbales"]
["Tom-Tom","Tom-Tom"]
["（3）Toms","Toms"]
["Tri.","Tri.angle"]
["W.Chime","Wind Chime"]
["W.Block","Wood Block"]
["ﾁｬｲﾅｺﾞﾝｸﾞ","ﾁｬｲﾅｺﾞﾝｸﾞ",null,null,null,null,null,"",""]
["ﾁｬﾝﾁｷ","ﾁｬﾝﾁｷ"]
["和太鼓","和太鼓"]

{"sheet":"※連盟使用欄１","index":8,"n_rows":2,"n_cols":16,"rows_kept":2,"cut":false,"hidden":false,"merged":[]}
["整理部門","整理番号","参加部門","団体名","ふりがな","連絡責任者","ふりがな","郵便番号","住所","電話番号","ＦＡＸ番号","携帯番号","アドレス","月","日","学校長（団体長）"]
[{"$f":"+参加申込書!B5","v":0},null,{"$f":"+A2","v":0},{"$f":"+参加申込書!B7","v":0},{"$f":"+参加申込書!B6","v":0},{"$f":"+参加申込書!C9","v":0},{"$f":"+参加申込書!C8","v":0},{"$f":"+参加申込書!C10","v":0},{"$f":"+参加申込書!C11","v":0},{"$f":"+参加申込書!C12","v":0},{"$f":"+参加申込書!H12","v":0},{"$f":"+参加申込書!H9","v":0},{"$f":"+参加申込書!D13","v":0},{"$f":"+参加申込書!C16","v":0},{"$f":"+参加申込書!E16","v":0},{"$f":"+参加申込書!D18","v":0}]

{"sheet":"※連盟使用欄２","index":9,"n_rows":2,"n_cols":44,"rows_kept":2,"cut":false,"hidden":false,"merged":[]}
["整理部門","整理番号","参加部門","団体名","ふりがな","〒","住所","TEL","FAX","部員数","連絡責任者","ふりがな","携帯電話番号","メールアドレス","指揮者氏名","ふりがな","他団体指揮","県内外","出演者数","ピアノ","課題曲","曲目（邦文）","ふりがな","Spelling","作曲者邦文","ふりがな","Spelling","生年","没年","編曲者邦文","ふりがな","Spelling","出版社","楽譜","搬入補助員数","オフステージ","回数","楽器","人数","演奏場所","その他","著作権","許諾先","使用打楽器"]
[{"$f":"+曲目等申込書!D7","v":0},null,{"$f":"+A2","v":0},{"$f":"+曲目等申込書!D9","v":0},{"$f":"+曲目等申込書!D8","v":0},{"$f":"+曲目等申込書!F10","v":0},{"$f":"+曲目等申込書!D11","v":0},{"$f":"+曲目等申込書!F12","v":0},{"$f":"+曲目等申込書!O12","v":0},{"$f":"+曲目等申込書!R10","v":0},{"$f":"+曲目等申込書!D14","v":0},{"$f":"+曲目等申込書!D13","v":0},{"$f":"+曲目等申込書!O14","v":0},{"$f":"+曲目等申込書!H15","v":0},{"$f":"+曲目等申込書!D17","v":0},{"$f":"+曲目等申込書!D16","v":0},{"$f":"+曲目等申込書!D18","v":0},{"$f":"+曲目等申込書!J18","v":0},{"$f":"+曲目等申込書!R16","v":0},{"$f":"+曲目等申込書!R18","v":0},{"$f":"+曲目等申込書!D19","v":0},{"$f":"+曲目等申込書!F21","v":0},{"$f":"+曲目等申込書!F20","v":0},{"$f":"+曲目等申込書!F22","v":0},{"$f":"+曲目等申込書!F24","v":0},{"$f":"+曲目等申込書!F23","v":0},{"$f":"+曲目等申込書!N23","v":0},{"$f":"+曲目等申込書!N24","v":0},{"$f":"+曲目等申込書!S24","v":0},{"$f":"+曲目等申込書!F26","v":0},{"$f":"+曲目等申込書!F25","v":0},{"$f":"+曲目等申込書!N25","v":0},{"$f":"+曲目等申込書!F27","v":0},{"$f":"+曲目等申込書!T27","v":0},{"$f":"+曲目等申込書!V28","v":0},{"$f":"+曲目等申込書!A31","v":0},{"$f":"+曲目等申込書!J30","v":0},{"$f":"+曲目等申込書!N30","v":0},{"$f":"+曲目等申込書!V30","v":0},{"$f":"+曲目等申込書!J31","v":0},{"$f":"+曲目等申込書!P31","v":0},{"$f":"+曲目等申込書!A37","v":0},{"$f":"+曲目等申込書!G38","v":0},{"$f":"+曲目等申込書!D28","v":0}]

{"sheet":"※連盟使用欄３","index":10,"n_rows":2,"n_cols":8,"rows_kept":2,"cut":false,"hidden":false,"merged":[]}
["整理部門","整理番号","参加部門","団体名","出演順","連絡責任者","予約部数","金額"]
[{"$f":"+予約プログラム申込書!B8","v":0},null,{"$f":"+予約プログラム申込書!B8","v":0},{"$f":"+予約プログラム申込書!C23","v":0},{"$f":"+予約プログラム申込書!E8","v":0},{"$f":"+予約プログラム申込書!C25","v":0},{"$f":"+予約プログラム申込書!C12","v":0},{"$f":"+予約プログラム申込書!F12","v":0}]